[Event "58th Akiba Rubinstein D 2022"]
[Site "Polanica-Zdroj"]
[Date "2022.08.19"]
[Round "7.10"]
[White "Pieczulis, Blazej"]
[Black "Marek, Grzegorz"]
[Result "0-1"]
[ECO "A50"]
[WhiteElo "1720"]
[BlackElo "1478"]
[Annotator "NA RC"]
[PlyCount "108"]
[EventDate "2022.08.13"]
[EventCountry "POL"]
[SourceTitle "playchess.com"]
[Source "ChessBase"]
[SourceQuality "1"]
[TimeControl "40/5400+30:1800+30"]

1. d4 {[%emt 0:01:13]} Nf6 {[%emt 0:00:14]} 2. c4 {[%emt 0:00:05]} b6 {[%emt 0:00:13]} 3. Nc3 {[%emt 0:00:04]} Bb7 {[%emt 0:00:05]} 4. f3 {[%emt 0:00:07]} Nc6 {[%emt 0:11:35]} 5. d5 {[%emt 0:06:39]} Ne5 {[%emt 0:06:34]} 6. e4 {[%emt 0:00:42]} d6 {[%emt 0:06:58]} 7. f4 {[%emt 0:03:25]} Ng6 {[%emt 0:02:18]} 8. Nf3 {[%emt 0:02:27]} e5 {[%emt 0:03:48]} 9. f5 {[%emt 0:02:27]} Ne7 {[%emt 0:00:34]} 10. Be3 {[%emt 0:03:09]} g6 {[%emt 0:03:26]} 11. Qc2 {[%emt 0:08:29]} Bg7 {[%emt 0:05:47]} 12. h3 {[%emt 0:01:04]} h5 {[%emt 0:03:15]} 13. O-O-O {[%emt 0:01:07]} Qd7 {[%emt 0:01:43]} 14. fxg6 {[%emt 0:01:33]} Nxg6 {[%emt 0:00:28]} 15. g3 {[%emt 0:00:38]} O-O-O {[%emt 0:05:53]} 16. Be2 {[%emt 0:09:22]} Kb8 {[%emt 0:02:24]} 17. Rdf1 {[%emt 0:01:41]} Rdf8 {[%emt 0:04:29]} 18. Bg5 {[%emt 0:18:01]} Bc8 {[%emt 0:06:04]} 19. Nxe5 {[%emt 0:04:56]} Nxe5 {[%emt 0:00:24]} 20. Bxf6 {[%emt 0:00:02]} Bxf6 {[%emt 0:03:05]} 21. Rxf6 {[%emt 0:00:02]} Rfg8 {[%emt 0:01:28]} 22. Rf5 {[%emt 0:09:41]} Qe7 {[%emt 0:05:37]} 23. Rf2 {[%emt 0:06:13]} Rxg3 {[%emt 0:00:28]} 24. h4 {[%emt 0:00:26]} Bg4 {[%emt 0:03:28]} 25. Nb5 {[%emt 0:00:52]} Bxe2 {[%emt 0:02:02]} 26. Qxe2 {[%emt 0:01:29]} Nd3+ {[%emt 0:04:40]} 27. Kd2 {[%emt 0:04:21]} Nxf2 {[%emt 0:00:40]} 28. Qxf2 {[%emt 0:00:06]} Rhg8 {[%emt 0:04:35]} 29. Qf5 {[%emt 0:02:27]} Rg2+ {[%emt 0:00:54]} 30. Kc1 {[%emt 0:00:10]} Qe5 {[%emt 0:00:39]} 31. Qxe5 {[%emt 0:00:26]} dxe5 {[%emt 0:00:17]} 32. d6 {[%emt 0:00:03]} Rg1+ {[%emt 0:00:14]} 33. Rxg1 {[%emt 0:00:06]} Rxg1+ {[%emt 0:00:05]} 34. Kd2 {[%emt 0:00:02]} cxd6 {[%emt 0:00:33]} 35. Nxd6 {[%emt 0:00:06]} Rg4 {[%emt 0:00:42]} 36. Nxf7 {[%emt 0:00:36]} Rxe4 {[%emt 0:00:17]} 37. Kd3 {[%emt 0:00:12]} Rd4+ {[%emt 0:01:09]} 38. Kc3 {[%emt 0:00:30]} Rxh4 {[%emt 0:00:11]} 39. Nxe5 {[%emt 0:00:05]} Rh1 {[%emt 0:01:04]} 40. Kd4 {[%emt 0:00:12]} h4 {[%emt 0:00:18]} 41. Ng4 {[%emt 0:30:17]} h3 {[%emt 0:30:31]} 42. Nf2 {[%emt 0:00:21]} Rb1 {[%emt 0:00:45]} 43. Nxh3 {[%emt 0:00:06]} Rxb2 {[%emt 0:00:04]} 44. a4 {[%emt 0:00:20]} Ra2 {[%emt 0:00:08]} 45. Nf4 {[%emt 0:00:12]} Rxa4 {[%emt 0:00:10]} 46. Kc3 {[%emt 0:00:04]} b5 {[%emt 0:00:30]} 47. Nd3 {[%emt 0:00:19]} Rxc4+ {[%emt 0:00:09]} 48. Kb3 {[%emt 0:00:03]} Rh4 {[%emt 0:00:23]} 49. Nc5 {[%emt 0:00:11]} a5 {[%emt 0:00:25]} 50. Ne6 {[%emt 0:00:18]} Rh3+ {[%emt 0:00:10]} 51. Kb2 {[%emt 0:00:03]} Kb7 {[%emt 0:00:19]} 52. Nc5+ {[%emt 0:00:06]} Kc6 {[%emt 0:00:13]} 53. Ne4 {[%emt 0:00:11]} Kd5 {[%emt 0:00:29]} 54. Nc3+ {[%emt 0:00:08]} Rxc3 {[%emt 0:00:16]} 0-1

[Event "58th Akiba Rubinstein D 2022"]
[Site "Polanica-Zdroj"]
[Date "2022.08.19"]
[Round "7.12"]
[White "Stepinski, Piotr"]
[Black "Nowicki, Bartosz"]
[Result "1-0"]
[ECO "C47"]
[WhiteElo "1568"]
[BlackElo "2291"]
[Annotator "TA"]
[PlyCount "175"]
[EventDate "2022.08.13"]
[EventCountry "POL"]
[SourceTitle "playchess.com"]
[Source "ChessBase"]
[SourceQuality "1"]
[TimeControl "40/5400+30:1800+30"]

{[%evp 9,175,25,29,29,38,26,81,26,102,17,10,18,9,0,1,0,0,0,47,63,73,75,200,204,194,163,309,242,261,179,216,198,216,214,228,196,239,175,220,208,210,203,221,203,228,177,197,164,147,140,156,145,153,152,149,150,160,155,172,196,210,151,207,143,152,120,130,76,106,57,311,306,307,255,228,236,228,236,243,241,240,230,312,307,312,312,305,248,263,264,264,0,256,240,520,514,523,489,425,410,533,490,487,442,369,308,308,307,306,300,295,291,282,259,325,318,406,385,1153,402,482,366,351,310,298,24,24,0,0,0,0,0,0,0,0,0,0,0,0,0,0,0,0,0,0,0,0,0,29980,29982,29979,0,29985,29986,29986,29987,29988,29988,29989,29990,29990,29988,29990,29991,29991,29990,29992,29991]} 1. e4 {[%emt 0:00:03]} e5 {[%emt 0:00:06]} 2. Nf3 {[%emt 0:00:02]} Nc6 {[%emt 0:00:05]} 3. Nc3 {[%emt 0:00:04]} Nf6 {[%emt 0:00:10]} 4. a3 {[%emt 0:00:04]} d6 {[%emt 0:01:23]} 5. d4 {[%emt 0:00:35]} exd4 {[%emt 0:00:44]} 6. Nxd4 {[%emt 0:00:01] C47: Scotch Four Knights and Four Knights with 4 g3.} Bd7 {[%emt 0:03:36][%cal Of6e4]} 7. Be2 {[%emt 0:01:02]} g6 {[%emt 0:02:53] [#]} (7... Be7 $11) 8. Bg5 $146 {[%emt 0:01:33]} (8. Be3 $16) ({Predecessor:} 8. Be3 Bg7 9. Qd2 Ng4 10. Nxc6 bxc6 11. Bd4 Bxd4 12. Qxd4 Qf6 13. O-O-O Qxd4 14. Rxd4 Nxf2 {1-0 (60) Schuh,D (2247)-Budzyn,M (2126) Werther 2007}) 8... h6 {[%emt 0:01:07]} (8... Bg7 $1 $11 {remains equal.}) 9. Bh4 {[%emt 0:05:02]} ({White should try} 9. Bxf6 $16 Qxf6 10. Ndb5) 9... g5 $11 {[%emt 0:02:43]} 10. Bg3 {[%emt 0:01:43]} Bg7 {[%emt 0:01:12][%cal Of6e4]} 11. Nb3 {[%emt 0:01:41]} Qe7 {[%emt 0:05:00]} 12. f3 {[%emt 0:02:59]} O-O-O {[%emt 0:04:12]} 13. Qd2 {[%emt 0:03:37]} Be6 {[%emt 0:09:12]} (13... Nh5 $11 {deserves consideration.}) 14. Nd5 $14 {[%emt 0:13:27]} Qf8 {[%emt 0:15:28]} 15. O-O-O {[%emt 0:01:57] Bb5 is the strong threat.} Nd7 {[%emt 0:06:04] [#]} (15... Nh5 $16 {was called for.}) 16. Nxc7 $1 $18 {[%emt 0:08:53][%mdl 512]} Nc5 {[%emt 0:23:03]} 17. Nxc5 {[%emt 0:11:28]} Kxc7 {[%emt 0:03:09]} (17... dxc5 $142 18. Qe1 (18. Nd5 f5 $16) 18... Be5) 18. Nxe6+ {[%emt 0:15:01]} fxe6 {[%emt 0:00:01]} 19. Bc4 {[%emt 0:02:45]} Qe7 {[%emt 0:05:26]} 20. Kb1 {[%emt 0:06:59]} Ne5 {[%emt 0:05:16]} 21. Bb3 {[%emt 0:01:21]} Kb8 {[%emt 0:01:19]} 22. c3 {[%emt 0:00:30]} h5 {[%emt 0:01:20]} 23. Bf2 {[%emt 0:00:20]} Nc6 {[%emt 0:01:47]} 24. Be3 {[%emt 0:00:36] A strong pair of Bishops.} Bf6 {[%emt 0:00:39]} 25. Rhe1 {[%emt 0:00:40]} Rhg8 {[%emt 0:02:35]} 26. Qf2 {[%emt 0:02:12]} Rg7 {[%emt 0:00:35]} 27. Ba4 {[%emt 0:00:31]} Qc7 {[%emt 0:01:30]} 28. Bxc6 {[%emt 0:00:16]} bxc6 {[%emt 0:00:01]} 29. Bd4 {[%emt 0:00:14]} e5 {[%emt 0:00:36]} 30. Be3 {[%emt 0:00:24]} d5 {[%emt 0:00:57]} 31. exd5 {[%emt 0:00:56]} cxd5 {[%emt 0:00:05]} 32. Qc2 {[%emt 0:00:08]} Qd7 {[%emt 0:01:06]} 33. Bf2 {[%emt 0:00:27]} Ka8 {[%emt 0:00:30]} 34. Bg3 {[%emt 0:00:31]} Qe6 {[%emt 0:01:16]} 35. Rd2 {[%emt 0:01:03][%cal Og3e5]} Re7 {[%emt 0:00:45]} (35... Rb7 $16 36. Qg6 (36. Rde2 Qa6 $16) 36... e4) 36. Bf2 {[%emt 0:01:30]} Rb7 {[%emt 0:00:50]} 37. Rde2 {[%emt 0:00:46]} Re8 {[%emt 0:00:03]} 38. g3 {[%emt 0:00:37]} (38. Bg3 $142) 38... Bg7 {[%emt 0:01:01]} 39. Bd4 {[%emt 0:02:21]} (39. Rd1 $16) 39... Rbe7 $2 {[%emt 0:00:08][%mdl 8192]} (39... Reb8 $1 $14) 40. Bxe5 {[%emt 0:00:43]} Bxe5 {[%emt 0:00:24]} 41. f4 {[%emt 0:30:00]} Qd6 {[%emt 0:30:42]} 42. fxe5 {[%emt 0:00:15]} Rxe5 {[%emt 0:00:00]} 43. Rxe5 {[%emt 0:00:16]} Rxe5 {[%emt 0:00:01]} 44. Rxe5 {[%emt 0:00:00]} Qxe5 {[%emt 0:00:01][%mdl 4096] Endgame KQ-KQ} 45. Qf2 {[%emt 0:00:50]} g4 {[%emt 0:00:16]} 46. Qd4 {[%emt 0:00:44]} Qf5+ {[%emt 0:00:34]} 47. Ka2 {[%emt 0:00:09]} Kb7 {[%emt 0:00:25]} 48. Kb3 {[%emt 0:00:07]} Qf7 {[%emt 0:00:31]} 49. Kb4 {[%emt 0:02:37]} Qe7+ {[%emt 0:01:44]} 50. Kb3 {[%emt 0:02:23]} Qf7 $1 {[%emt 0:00:16]} 51. Qc5 {[%emt 0:01:08]} Qf5 $2 {[%emt 0:01:26]} (51... Qe6 52. Qb5+ Kc7) 52. Qe7+ {[%emt 0:01:37]} Kb6 {[%emt 0:00:33]} 53. Qd6+ {[%emt 0:00:36]} Kb7 {[%emt 0:00:23]} 54. a4 {[%emt 0:00:32]} Qd3 {[%emt 0:01:09]} 55. Qe7+ {[%emt 0:01:16]} Kb8 {[%emt 0:00:58]} 56. Qe8+ {[%emt 0:00:40]} Kc7 {[%emt 0:00:11]} 57. Qxh5 {[%emt 0:04:13] Active counter play!} Qc4+ {[%emt 0:00:16]} 58. Ka3 {[%emt 0:00:01]} Qc5+ {[%emt 0:00:27]} 59. Ka2 {[%emt 0:00:10]} Qc4+ {[%emt 0:00:07]} 60. b3 $1 {[%emt 0:00:48]} Qxc3 {[%emt 0:01:09]} 61. Qxd5 {[%emt 0:00:46] Threatens to win with Qc4+.} Qc2+ {[%emt 0:00:10]} 62. Ka3 {[%emt 0:00:20] And now Qc4+ would win.} Qxh2 {[%emt 0:00:42]} 63. Qc4+ {[%emt 0:00:08]} Kb6 $2 {[%emt 0:00:37]} (63... Kb8 64. Qf4+ Kb7 65. Qxg4 Qh1 66. Qd7+ Kb6 67. Qe6+ Kb7) 64. Qxg4 {[%emt 0:00:10]} (64. a5+ $142 Kb7 65. a6+ Kb6 66. Qe6+ Kc5 67. Qe7+ Kc6 68. Qxa7) 64... Qh1 {[%emt 0:00:26]} 65. Qd4+ {[%emt 0:00:43]} Kb7 {[%emt 0:00:26]} 66. Qc3 {[%emt 0:00:57] Inhibits Qc1+.} Qg1 {[%emt 0:00:24]} 67. g4 $2 {[%emt 0:00:37]} ({Better is} 67. Qf3+ $18 Kb6 68. Qf4) 67... Qxg4 $11 {[%emt 0:00:35]} 68. Qb4+ {[%emt 0:00:06]} Qxb4+ {[%emt 0:00:12]} 69. Kxb4 {[%emt 0:00:01] KPP-KP} Kb6 $1 {[%emt 0:00:22]} 70. Kc4 {[%emt 0:00:25]} Kc6 $1 {[%emt 0:00:51]} 71. b4 {[%emt 0:00:13]} a6 72. Kb3 {[%emt 0:00:56]} Kb7 {[%emt 0:00:54]} 73. Kc3 {[%emt 0:00:39]} Kc7 {[%emt 0:00:14]} 74. Kd3 {[%emt 0:00:09]} Kd7 {[%emt 0:00:30]} 75. Ke3 {[%emt 0:02:22]} Kc7 {[%emt 0:00:44]} 76. Ke4 {[%emt 0:02:00]} Kc6 {[%emt 0:00:32]} 77. Ke5 {[%emt 0:00:16] White wants to mate with Ke6.} Kc7 {[%emt 0:00:22]} 78. Kd5 {[%emt 0:00:18]} Kb6 $2 {[%emt 0:01:27][%mdl 8192] [#]} (78... Kd7 $11 79. Kc5 Kc7 80. a5 Kb7 81. Kd6 Ka8 82. Kc6 Ka7 83. Kc7 Ka8) 79. Kd6 $1 {[%emt 0:00:11]} Kb7 {[%emt 0:00:31] [#]} 80. a5 $2 {[%emt 0:00:07]} (80. Kd7 $1 {mates} Kb6 81. Kd6 Kb7 82. a5 Ka8 83. Kc6 Ka7 84. Kc7 Ka8 85. Kb6) 80... Ka7 $2 {[%emt 0:00:20][%mdl 8192]} (80... Kc8 $11 81. Kc6 Kd8 82. Kb7 Ke7 83. Kxa6 Ke8 84. b5 Kd8 85. b6 Kc8) 81. Kc6 {[%emt 0:00:07] White mates.} Kb8 {[%emt 0:00:34]} 82. Kb6 {[%emt 0:00:01]} Ka8 83. Kxa6 {[%emt 0:00:05]} Kb8 {[%emt 0:00:14]} 84. Kb6 {[%emt 0:00:02]} Ka8 {[%emt 0:00:08]} 85. Kc7 {[%emt 0:00:12]} Ka7 {[%emt 0:00:12]} 86. b5 {[%emt 0:00:04][%cal Bb4b5,Bb5b6][%mdl 32]} Ka8 {[%emt 0:00:02]} 87. a6 {[%emt 0:00:06]} Ka7 {[%emt 0:00:09]} 88. b6+ {[%emt 0:00:04] Weighted Error Value: White=0.24 (precise) /Black=0.34} 1-0

[Event "58th Akiba Rubinstein D 2022"]
[Site "Polanica-Zdroj"]
[Date "2022.08.19"]
[Round "7.13"]
[White "Soszka, Szymon"]
[Black "Bialik, Nikodem"]
[Result "1/2-1/2"]
[ECO "A57"]
[WhiteElo "1355"]
[BlackElo "1638"]
[Annotator "NA RC"]
[PlyCount "132"]
[EventDate "2022.08.13"]
[EventCountry "POL"]
[SourceTitle "playchess.com"]
[Source "ChessBase"]
[SourceQuality "1"]
[TimeControl "40/5400+30:1800+30"]

1. d4 {[%emt 0:06:13]} Nf6 {[%emt 0:04:13]} 2. c4 {[%emt 0:00:06]} c5 {[%emt 0:00:08]} 3. d5 {[%emt 0:00:02]} b5 {[%emt 0:00:06]} 4. cxb5 {[%emt 0:00:02]} a6 {[%emt 0:00:07]} 5. e3 {[%emt 0:00:03]} g6 {[%emt 0:01:37]} 6. Nc3 {[%emt 0:00:40]} d6 {[%emt 0:02:35]} 7. Nf3 {[%emt 0:07:11]} Bg7 {[%emt 0:02:06]} 8. Be2 {[%emt 0:04:32]} O-O {[%emt 0:00:21]} 9. O-O {[%emt 0:00:08]} axb5 {[%emt 0:00:54]} 10. Bxb5 {[%emt 0:00:08]} Ba6 {[%emt 0:00:53]} 11. a4 {[%emt 0:01:28]} Bxb5 {[%emt 0:03:53]} 12. Nxb5 {[%emt 0:00:07]} Qb6 {[%emt 0:00:46]} 13. Re1 {[%emt 0:01:14]} Nbd7 {[%emt 0:06:42]} 14. e4 {[%emt 0:01:45]} Ne8 {[%emt 0:00:49]} 15. Qe2 {[%emt 0:02:35]} Nc7 {[%emt 0:00:30]} 16. Be3 {[%emt 0:00:17]} Nxb5 {[%emt 0:01:57]} 17. axb5 {[%emt 0:00:07]} Rxa1 {[%emt 0:00:59]} 18. Rxa1 {[%emt 0:00:07]} Rb8 {[%emt 0:00:08]} 19. Bd2 {[%emt 0:07:22]} h5 {[%emt 0:21:27]} 20. Bc3 {[%emt 0:00:54]} Bxc3 {[%emt 0:10:08]} 21. bxc3 {[%emt 0:00:07]} Qxb5 {[%emt 0:00:04]} 22. Qxb5 {[%emt 0:01:35]} Rxb5 {[%emt 0:01:34]} 23. Kf1 {[%emt 0:00:29]} Nf6 {[%emt 0:06:13]} 24. Nd2 {[%emt 0:00:29]} Rb2 {[%emt 0:00:08]} 25. Ke1 {[%emt 0:00:26]} Ng4 {[%emt 0:05:03]} 26. Rd1 {[%emt 0:03:25]} Rc2 {[%emt 0:00:29]} 27. h3 {[%emt 0:00:43]} Ne5 {[%emt 0:00:18]} 28. Nb1 {[%emt 0:02:54]} c4 {[%emt 0:00:55]} 29. Rd2 {[%emt 0:00:34]} Nd3+ {[%emt 0:00:55]} 30. Ke2 {[%emt 0:00:11]} Rc1 {[%emt 0:00:10]} 31. Na3 {[%emt 0:00:30]} Rxc3 {[%emt 0:00:39]} 32. Nc2 {[%emt 0:01:06]} Nc1+ {[%emt 0:00:37]} 33. Kf1 {[%emt 0:00:58]} Nb3 {[%emt 0:04:34]} 34. Re2 {[%emt 0:00:07]} Kg7 {[%emt 0:00:29]} 35. f4 {[%emt 0:00:16]} Rd3 {[%emt 0:01:24]} 36. Nb4 {[%emt 0:02:50]} Rd1+ {[%emt 0:00:19]} 37. Kf2 {[%emt 0:00:45]} Nd4 {[%emt 0:00:25]} 38. Re1 {[%emt 0:01:05]} Rd2+ {[%emt 0:01:01]} 39. Ke3 {[%emt 0:00:33]} Nb3 {[%emt 0:00:05]} 40. Re2 {[%emt 0:00:46]} Rxe2+ {[%emt 0:03:44]} 41. Kxe2 {[%emt 0:30:01]} Kf6 {[%emt 0:30:11]} 42. g4 {[%emt 0:01:00]} hxg4 {[%emt 0:02:39]} 43. hxg4 {[%emt 0:00:02]} g5 {[%emt 0:01:13]} 44. Ke3 {[%emt 0:00:13]} gxf4+ {[%emt 0:01:22]} 45. Kxf4 {[%emt 0:00:07]} c3 {[%emt 0:01:01]} 46. Nc2 {[%emt 0:00:07]} Nd2 {[%emt 0:01:01]} 47. g5+ {[%emt 0:05:23]} Kg6 {[%emt 0:00:05]} 48. e5 {[%emt 0:00:04]} dxe5+ {[%emt 0:00:38]} 49. Kxe5 {[%emt 0:00:04]} Kxg5 {[%emt 0:00:21]} 50. Kd4 {[%emt 0:00:05]} Nb1 {[%emt 0:01:47]} 51. Ke5 {[%emt 0:00:34]} Kg4 {[%emt 0:00:39]} 52. d6 {[%emt 0:03:50]} exd6+ {[%emt 0:00:11]} 53. Kxd6 {[%emt 0:00:07]} Kf4 {[%emt 0:01:09]} 54. Kd5 {[%emt 0:00:13]} f5 {[%emt 0:00:21]} 55. Kd4 {[%emt 0:00:10]} Kf3 {[%emt 0:00:10]} 56. Kd3 {[%emt 0:00:21]} f4 {[%emt 0:00:26]} 57. Nd4+ {[%emt 0:00:03]} Kf2 {[%emt 0:04:14]} 58. Kc2 {[%emt 0:03:57]} Ke3 {[%emt 0:01:03]} 59. Nf5+ {[%emt 0:00:15]} Ke4 {[%emt 0:00:17]} 60. Nh4 {[%emt 0:01:07]} Na3+ {[%emt 0:03:18]} 61. Kxc3 {[%emt 0:00:18]} Nb5+ {[%emt 0:00:04]} 62. Kd2 {[%emt 0:00:33]} Nd4 {[%emt 0:00:09]} 63. Kd1 {[%emt 0:02:03]} Ne6 {[%emt 0:03:22]} 64. Ke2 {[%emt 0:00:39]} Ng5 {[%emt 0:00:33]} 65. Kf2 {[%emt 0:00:29]} Kd3 {[%emt 0:00:55]} 66. Ng6 {[%emt 0:00:20]} Kd4 1/2-1/2

[Event "58th Akiba Rubinstein D 2022"]
[Site "Polanica-Zdroj"]
[Date "2022.08.19"]
[Round "7.14"]
[White "Owoc, Jakub"]
[Black "Skrzypinski, Jan"]
[Result "0-1"]
[ECO "B22"]
[WhiteElo "1756"]
[BlackElo "1517"]
[Annotator "NA RC"]
[PlyCount "84"]
[EventDate "2022.08.13"]
[EventCountry "POL"]
[SourceTitle "playchess.com"]
[Source "ChessBase"]
[SourceQuality "1"]
[TimeControl "40/5400+30:1800+30"]

1. e4 {[%emt 0:00:04]} c5 {[%emt 0:00:08]} 2. c3 {[%emt 0:00:06]} d5 {[%emt 0:00:07]} 3. exd5 {[%emt 0:00:08]} Qxd5 {[%emt 0:00:04]} 4. d4 {[%emt 0:00:11]} Nf6 {[%emt 0:00:36]} 5. Nf3 {[%emt 0:00:11]} Bg4 {[%emt 0:00:10]} 6. Be2 {[%emt 0:00:08]} e6 {[%emt 0:00:31]} 7. Be3 {[%emt 0:00:15]} cxd4 {[%emt 0:00:17]} 8. cxd4 {[%emt 0:00:09]} Bb4+ {[%emt 0:00:35]} 9. Nc3 {[%emt 0:00:07]} O-O {[%emt 0:00:22]} 10. O-O {[%emt 0:00:08]} Qa5 {[%emt 0:00:19]} 11. Qb3 {[%emt 0:05:11]} Nc6 {[%emt 0:02:10]} 12. a3 {[%emt 0:00:20]} Bxc3 {[%emt 0:00:23]} 13. bxc3 {[%emt 0:00:09]} Qc7 {[%emt 0:00:54]} 14. Rac1 {[%emt 0:04:16]} Rfc8 {[%emt 0:01:05]} 15. h3 {[%emt 0:01:52]} Bh5 {[%emt 0:00:15]} 16. Bg5 {[%emt 0:16:22]} Ne4 {[%emt 0:01:22]} 17. Bh4 {[%emt 0:14:12]} Bxf3 {[%emt 0:00:09]} 18. Bxf3 {[%emt 0:00:10]} Nd2 {[%emt 0:00:04]} 19. Qb5 {[%emt 0:01:48]} Nxf1 {[%emt 0:02:19]} 20. Rxf1 {[%emt 0:00:33]} a6 {[%emt 0:00:31]} 21. Qg5 {[%emt 0:00:32]} Qa5 {[%emt 0:03:03]} 22. Qg4 {[%emt 0:00:29]} Qf5 {[%emt 0:00:39]} 23. Qxf5 {[%emt 0:00:39]} exf5 {[%emt 0:07:30]} 24. Bg3 {[%emt 0:00:06]} Na5 {[%emt 0:02:46]} 25. Rc1 {[%emt 0:01:48]} Ra7 {[%emt 0:01:24]} 26. d5 {[%emt 0:00:47]} b5 {[%emt 0:00:14]} 27. d6 {[%emt 0:00:54]} Rd7 {[%emt 0:00:06]} 28. Re1 {[%emt 0:00:55]} Kf8 {[%emt 0:02:39]} 29. Bh4 {[%emt 0:03:32]} f6 {[%emt 0:04:29]} 30. Bg3 {[%emt 0:00:12]} Rxc3 {[%emt 0:00:16]} 31. Bd5 {[%emt 0:00:08]} Rxg3 {[%emt 0:00:29]} 32. fxg3 {[%emt 0:00:08]} Rxd6 {[%emt 0:00:03]} 33. Be6 {[%emt 0:00:13]} g6 {[%emt 0:01:15]} 34. Re3 {[%emt 0:00:23]} Nc6 {[%emt 0:00:33]} 35. h4 {[%emt 0:00:22]} Ne5 {[%emt 0:00:12]} 36. Bb3 {[%emt 0:00:09]} Ng4 {[%emt 0:00:51]} 37. Rc3 {[%emt 0:00:06]} a5 {[%emt 0:00:55]} 38. Rc5 {[%emt 0:00:10]} a4 {[%emt 0:00:14]} 39. Bc2 {[%emt 0:00:01]} Rd2 {[%emt 0:00:12]} 40. h5 {[%emt 0:00:16]} Ne3 {[%emt 0:00:13]} 41. Rc8+ {[%emt 0:30:28]} Kg7 {[%emt 0:30:17]} 42. Rc7+ {[%emt 0:00:03]} Kh6 {[%emt 0:00:09]} 0-1

[Event "58th Akiba Rubinstein D 2022"]
[Site "Polanica-Zdroj"]
[Date "2022.08.19"]
[Round "7.15"]
[White "Kopestynski, Michal"]
[Black "Sola, Wojciech"]
[Result "1/2-1/2"]
[ECO "B27"]
[WhiteElo "1554"]
[BlackElo "1780"]
[Annotator "NA RC"]
[PlyCount "35"]
[EventDate "2022.08.13"]
[EventCountry "POL"]
[SourceTitle "playchess.com"]
[Source "ChessBase"]
[SourceQuality "1"]
[TimeControl "40/5400+30:1800+30"]

1. e4 {[%emt 0:04:31]} c5 {[%emt 0:00:02]} 2. Nf3 {[%emt 0:00:05]} g6 {[%emt 0:00:07]} 3. d4 {[%emt 0:00:05]} cxd4 {[%emt 0:00:16]} 4. Qxd4 {[%emt 0:00:08]} Nf6 {[%emt 0:00:39]} 5. Nc3 {[%emt 0:00:37]} Nc6 {[%emt 0:00:38]} 6. Qa4 {[%emt 0:00:09]} d6 {[%emt 0:04:10]} 7. e5 {[%emt 0:02:54]} Ng4 {[%emt 0:04:16]} 8. Bb5 {[%emt 0:14:54]} Bg7 {[%emt 0:10:57]} 9. exd6 {[%emt 0:02:31]} Qxd6 {[%emt 0:03:46]} 10. O-O {[%emt 0:00:08]} O-O {[%emt 0:00:59]} 11. h3 {[%emt 0:01:16]} Nge5 {[%emt 0:01:47]} 12. Nxe5 {[%emt 0:02:56]} Nxe5 {[%emt 0:04:58]} 13. Bf4 {[%emt 0:01:06]} a6 {[%emt 0:01:28]} 14. Be2 {[%emt 0:00:40]} Bd7 {[%emt 0:05:08]} 15. Qe4 {[%emt 0:05:37]} Bc6 {[%emt 0:16:26]} 16. Qe3 {[%emt 0:01:36]} Rad8 {[%emt 0:02:45]} 17. Rad1 {[%emt 0:01:27]} Qe6 {[%emt 0:03:05]} 18. Rfe1 {[%emt 0:01:01]} 1/2-1/2

[Event "58th Akiba Rubinstein D 2022"]
[Site "Polanica-Zdroj"]
[Date "2022.08.19"]
[Round "7.16"]
[White "Szczepanski, Krzysztof"]
[Black "Wilgosz, Tomasz"]
[Result "0-1"]
[ECO "A06"]
[WhiteElo "1790"]
[BlackElo "1513"]
[Annotator "NA RC"]
[PlyCount "109"]
[EventDate "2022.08.13"]
[EventCountry "POL"]
[SourceTitle "playchess.com"]
[Source "ChessBase"]
[SourceQuality "1"]
[TimeControl "40/5400+30:1800+30"]

1. Nf3 {[%emt 0:00:30]} d5 {[%emt 0:01:29]} 2. d4 {[%emt 0:00:06]} e6 {[%emt 0:00:52]} 3. c4 {[%emt 0:00:05]} c5 {[%emt 0:00:19]} 4. cxd5 {[%emt 0:00:46]} exd5 {[%emt 0:00:07]} 5. dxc5 {[%emt 0:00:57]} Bxc5 {[%emt 0:00:06]} 6. e3 {[%emt 0:00:18]} Nf6 {[%emt 0:00:21]} 7. Bb5+ {[%emt 0:01:02]} Nc6 {[%emt 0:03:26]} 8. Nc3 {[%emt 0:05:46]} O-O {[%emt 0:03:08]} 9. O-O {[%emt 0:00:18]} a6 {[%emt 0:00:50]} 10. Be2 {[%emt 0:04:28]} Bf5 {[%emt 0:03:05]} 11. a3 {[%emt 0:00:31]} Re8 {[%emt 0:01:43]} 12. b4 {[%emt 0:00:29]} Bb6 {[%emt 0:03:30]} 13. Na4 {[%emt 0:01:32]} Be4 {[%emt 0:05:47]} 14. Bb2 {[%emt 0:01:03]} Bxf3 {[%emt 0:03:50]} 15. Bxf3 {[%emt 0:00:25]} Ne5 {[%emt 0:00:50]} 16. Nxb6 {[%emt 0:05:20]} Qxb6 {[%emt 0:01:49]} 17. Bd4 {[%emt 0:00:15]} Qe6 {[%emt 0:02:19]} 18. h3 {[%emt 0:02:53]} Nxf3+ {[%emt 0:05:17]} 19. Qxf3 {[%emt 0:00:23]} Ne4 {[%emt 0:01:13]} 20. Rfd1 {[%emt 0:04:35]} Rac8 {[%emt 0:02:52]} 21. Ra2 {[%emt 0:13:47]} Rc7 {[%emt 0:07:43]} 22. Qg4 {[%emt 0:01:04]} f5 {[%emt 0:01:02]} 23. Qf4 {[%emt 0:02:55]} Rc4 {[%emt 0:08:01]} 24. Qf3 {[%emt 0:02:49]} Rec8 {[%emt 0:02:16]} 25. Rb2 {[%emt 0:01:26]} Rc2 {[%emt 0:06:00]} 26. Rxc2 {[%emt 0:01:16]} Rxc2 {[%emt 0:00:03]} 27. Rf1 {[%emt 0:01:30]} Qc8 28. Qf4 {[%emt 0:06:28]} Nd2 {[%emt 0:08:49]} 29. Qe5 {[%emt 0:01:33]} Qd7 {[%emt 0:01:10]} 30. Rd1 Nc4 {[%emt 0:04:48]} 31. Qb8+ {[%emt 0:01:49]} Kf7 {[%emt 0:00:09]} 32. a4 Nb2 {[%emt 0:05:43]} 33. Bxb2 {[%emt 0:11:10]} Rxb2 {[%emt 0:00:03]} 34. Rd4 {[%emt 0:01:55]} Rb1+ {[%emt 0:05:32]} 35. Kh2 {[%emt 0:00:22]} b5 {[%emt 0:02:17]} 36. axb5 {[%emt 0:02:29]} axb5 {[%emt 0:01:40]} 37. Qe5 {[%emt 0:01:45]} Qe6 {[%emt 0:02:12]} 38. Qc7+ {[%emt 0:02:08]} Kg6 {[%emt 0:02:03]} 39. g4 {[%emt 0:03:42]} Rb2 {[%emt 0:02:45]} 40. gxf5+ {[%emt 0:00:45]} Qxf5 {[%emt 0:01:36]} 41. Rg4+ {[%emt 0:30:25]} Kh5 {[%emt 0:30:36]} 42. Qxg7 {[%emt 0:09:09]} Qxf2+ {[%emt 0:01:03]} 43. Rg2 {[%emt 0:00:07]} Qxg2+ {[%emt 0:00:21]} 44. Qxg2 {[%emt 0:00:12]} Rxg2+ {[%emt 0:00:01]} 45. Kxg2 {[%emt 0:00:13]} Kg5 {[%emt 0:00:13]} 46. Kg3 {[%emt 0:05:59]} Kf5 {[%emt 0:00:25]} 47. Kf3 {[%emt 0:00:12]} h6 {[%emt 0:00:53]} 48. Ke2 {[%emt 0:01:52]} Ke4 {[%emt 0:00:20]} 49. h4 {[%emt 0:02:47]} d4 {[%emt 0:00:28]} 50. exd4 {[%emt 0:00:13]} Kxd4 {[%emt 0:00:01]} 51. h5 {[%emt 0:01:00]} Kc4 {[%emt 0:00:23]} 52. Kf3 {[%emt 0:00:22]} Kxb4 {[%emt 0:00:06]} 53. Kf4 {[%emt 0:00:05]} Kc4 {[%emt 0:00:23]} 54. Kf5 {[%emt 0:00:03]} b4 {[%emt 0:00:08]} 55. Kg6 {[%emt 0:00:06]} 0-1